[Event "Titled Tuesday Blitz February 21 Late 2023"]
[White "Petrovic, Aleksa"]
[Black "Andreikin, Dmitry"]
[WhiteFideId "967629"]
[BlackFideId "4158814"]
[WhiteElo "2332"]
[BlackElo "2729"]
[Result "0-1"]
[Round "01"]
[TimeControl "180+2"]
[Date "2023.02.21"]
[WhiteClock "0:00:03"]
[BlackClock "0:00:26"]

1. d4 {[%clk 0:02:59]}  Nf6 {[%clk 0:02:58]} 2. c4 {[%clk 0:02:59]}  e6 {[%clk 0:02:57]} 3. Nf3 {[%clk 0:02:58]}  b6 {[%clk 0:02:52]} 4. g3 {[%clk 0:02:57]}  Bb7 {[%clk 0:02:52]} 5. Bg2 {[%clk 0:02:56]}  Bb4+ {[%clk 0:02:52]} 6. Bd2 {[%clk 0:02:55]}  a5 {[%clk 0:02:52]} 7. O-O {[%clk 0:02:55]}  O-O {[%clk 0:02:52]} 8. Bf4 {[%clk 0:02:55]}  Be7 {[%clk 0:02:51]} 9. Nc3 {[%clk 0:02:53]}  Ne4 {[%clk 0:02:49]} 10. Rc1 {[%clk 0:02:52]}  d6 {[%clk 0:02:44]} 11. Qd3 {[%clk 0:02:29]}  Nxc3 {[%clk 0:02:43]} 12. bxc3 {[%clk 0:02:28]}  h6 {[%clk 0:02:39]} 13. Rb1 {[%clk 0:02:18]}  Nd7 {[%clk 0:02:36]} 14. Bc1 {[%clk 0:02:11]}  Nf6 {[%clk 0:02:29]} 15. Qd1 {[%clk 0:01:53]}  Be4 {[%clk 0:02:21]} 16. Rb5 {[%clk 0:01:51]}  Qd7 {[%clk 0:02:15]} 17. Re1 {[%clk 0:01:44]}  Qc6 {[%clk 0:02:07]} 18. Qa4 {[%clk 0:01:28]}  Rfd8 {[%clk 0:01:49]} 19. Ba3 {[%clk 0:01:23]}  Qe8 {[%clk 0:01:45]} 20. Qd1 {[%clk 0:01:11]}  Qc6 {[%clk 0:01:45]} 21. Qa4 {[%clk 0:01:10]}  Bf8 {[%clk 0:01:40]} 22. Bf1 {[%clk 0:00:59]}  Qe8 {[%clk 0:01:31]} 23. Qd1 {[%clk 0:00:57]}  Bc6 {[%clk 0:01:29]} 24. Rb1 {[%clk 0:00:55]}  e5 {[%clk 0:01:24]} 25. Bg2 {[%clk 0:00:49]}  e4 {[%clk 0:01:20]} 26. Nd2 {[%clk 0:00:29]}  e3 {[%clk 0:01:16]} 27. Bxc6 {[%clk 0:00:20]}  exf2+ {[%clk 0:01:16]} 28. Kxf2 {[%clk 0:00:21]}  Qxc6 {[%clk 0:01:06]} 29. e4 {[%clk 0:00:21]}  Re8 {[%clk 0:00:57]} 30. d5 {[%clk 0:00:18]}  Qd7 {[%clk 0:00:55]} 31. Kg2 {[%clk 0:00:18]}  g6 {[%clk 0:00:43]} 32. Qf3 {[%clk 0:00:17]}  Bg7 {[%clk 0:00:43]} 33. Re2 {[%clk 0:00:15]}  Ng4 {[%clk 0:00:41]} 34. Rf1 {[%clk 0:00:11]}  Ne5 {[%clk 0:00:41]} 35. Qf2 {[%clk 0:00:12]}  Qa4 {[%clk 0:00:39]} 36. Bc1 {[%clk 0:00:07]}  Re7 {[%clk 0:00:40]} 37. Nf3 {[%clk 0:00:05]}  Nd3 {[%clk 0:00:37]} 38. Qe3 {[%clk 0:00:03]}  Qxc4 {[%clk 0:00:37]} 39. Nd2 {[%clk 0:00:03]}  Qxc3 {[%clk 0:00:32]} 40. Nb1 {[%clk 0:00:03]}  Qc4 {[%clk 0:00:32]} 41. Na3 {[%clk 0:00:03]}  Qa6 {[%clk 0:00:30]} 42. Bd2 {[%clk 0:00:03]}  Rae8 {[%clk 0:00:27]} 43. Rf3 {[%clk 0:00:03]}  Nc5 {[%clk 0:00:27]} 44. e5 {[%clk 0:00:03]}  Rxe5 {[%clk 0:00:26]} 0-1


[Site "https://www.chess.com"]

[Event "Titled Tuesday Blitz February 21 Late 2023"]
[White "Yeritsyan, Hayk"]
[Black "Vachier-Lagrave, Maxime"]
[WhiteFideId "13307320"]
[BlackFideId "623539"]
[WhiteElo "2241"]
[BlackElo "2742"]
[Result "0-1"]
[Round "01"]
[TimeControl "180+2"]
[Date "2023.02.21"]
[WhiteClock "0:00:03"]
[BlackClock "0:01:05"]

1. d4 {[%clk 0:02:50]}  Nf6 {[%clk 0:02:53]} 2. Nf3 {[%clk 0:02:50]}  g6 {[%clk 0:02:53]} 3. Bf4 {[%clk 0:02:50]}  Bg7 {[%clk 0:02:52]} 4. h3 {[%clk 0:02:51]}  O-O {[%clk 0:02:52]} 5. e3 {[%clk 0:02:52]}  b6 {[%clk 0:02:47]} 6. c3 {[%clk 0:02:52]}  Bb7 {[%clk 0:02:48]} 7. Be2 {[%clk 0:02:52]}  e6 {[%clk 0:02:47]} 8. O-O {[%clk 0:02:53]}  d6 {[%clk 0:02:47]} 9. Bh2 {[%clk 0:02:50]}  Nbd7 {[%clk 0:02:48]} 10. Nbd2 {[%clk 0:02:50]}  Qe7 {[%clk 0:02:43]} 11. Rc1 {[%clk 0:02:50]}  e5 {[%clk 0:02:42]} 12. Nc4 {[%clk 0:02:50]}  Ne4 {[%clk 0:02:40]} 13. Nfd2 {[%clk 0:02:49]}  Nxd2 {[%clk 0:02:37]} 14. Nxd2 {[%clk 0:02:50]}  c5 {[%clk 0:02:32]} 15. Bf3 {[%clk 0:02:48]}  d5 {[%clk 0:02:29]} 16. Re1 {[%clk 0:02:29]}  Rad8 {[%clk 0:02:25]} 17. Qb3 {[%clk 0:02:20]}  e4 {[%clk 0:02:07]} 18. Be2 {[%clk 0:02:17]}  c4 {[%clk 0:02:07]} 19. Qc2 {[%clk 0:02:09]}  b5 {[%clk 0:02:00]} 20. b3 {[%clk 0:02:09]}  Nb6 {[%clk 0:01:59]} 21. a4 {[%clk 0:01:53]}  a6 {[%clk 0:01:55]} 22. axb5 {[%clk 0:01:50]}  axb5 {[%clk 0:01:56]} 23. bxc4 {[%clk 0:01:48]}  dxc4 {[%clk 0:01:57]} 24. Ra1 {[%clk 0:01:32]}  Ra8 {[%clk 0:01:55]} 25. Reb1 {[%clk 0:01:22]}  Bc6 {[%clk 0:01:54]} 26. Qb2 {[%clk 0:00:49]}  Nd5 {[%clk 0:01:31]} 27. Rxa8 {[%clk 0:00:43]}  Rxa8 {[%clk 0:01:32]} 28. Ra1 {[%clk 0:00:42]}  Rxa1+ {[%clk 0:01:31]} 29. Qxa1 {[%clk 0:00:43]}  Bf8 {[%clk 0:01:26]} 30. Be5 {[%clk 0:00:36]}  f6 {[%clk 0:01:21]} 31. Bg3 {[%clk 0:00:36]}  f5 {[%clk 0:01:21]} 32. Be5 {[%clk 0:00:32]}  Qa3 {[%clk 0:01:21]} 33. Qxa3 {[%clk 0:00:19]}  Bxa3 {[%clk 0:01:22]} 34. Nb1 {[%clk 0:00:06]}  Bb2 {[%clk 0:01:19]} 35. Bf1 {[%clk 0:00:06]}  Bd7 {[%clk 0:01:11]} 36. g4 {[%clk 0:00:04]}  Nxc3 {[%clk 0:01:10]} 37. d5 {[%clk 0:00:04]}  Ne2+ {[%clk 0:01:08]} 38. Bxe2 {[%clk 0:00:03]}  Bxe5 {[%clk 0:01:09]} 39. Na3 {[%clk 0:00:03]}  Bd6 {[%clk 0:01:05]} 0-1


[Site "https://www.chess.com"]

[Event "Titled Tuesday Blitz February 21 Late 2023"]
[White "Kramnik, Vladimir"]
[Black "Womacka, Mathias"]
[WhiteFideId "4101588"]
[BlackFideId "4611390"]
[WhiteElo "2753"]
[BlackElo "2396"]
[Result "1-0"]
[Round "01"]
[TimeControl "180+2"]
[Date "2023.02.21"]
[WhiteClock "0:01:16"]
[BlackClock "0:00:23"]

1. Nf3 {[%clk 0:02:58]}  c5 {[%clk 0:02:59]} 2. e3 {[%clk 0:02:56]}  Nf6 {[%clk 0:02:56]} 3. d4 {[%clk 0:02:56]}  e6 {[%clk 0:02:55]} 4. c4 {[%clk 0:02:51]}  d5 {[%clk 0:02:54]} 5. cxd5 {[%clk 0:02:50]}  exd5 {[%clk 0:02:54]} 6. Bb5+ {[%clk 0:02:50]}  Nc6 {[%clk 0:02:55]} 7. O-O {[%clk 0:02:48]}  cxd4 {[%clk 0:02:52]} 8. exd4 {[%clk 0:02:46]}  Be7 {[%clk 0:02:46]} 9. Ne5 {[%clk 0:02:45]}  Qb6 {[%clk 0:02:33]} 10. Bxc6+ {[%clk 0:02:40]}  bxc6 {[%clk 0:02:32]} 11. Re1 {[%clk 0:02:41]}  O-O {[%clk 0:02:15]} 12. Nc3 {[%clk 0:02:40]}  Bb4 {[%clk 0:01:55]} 13. Bd2 {[%clk 0:02:28]}  Bxc3 {[%clk 0:01:40]} 14. Bxc3 {[%clk 0:02:28]}  Ne4 {[%clk 0:01:39]} 15. Rc1 {[%clk 0:02:23]}  Nxc3 {[%clk 0:01:32]} 16. Rxc3 {[%clk 0:02:18]}  Qxb2 {[%clk 0:01:30]} 17. Rc2 {[%clk 0:02:18]}  Qa3 {[%clk 0:01:27]} 18. Nxc6 {[%clk 0:02:10]}  Be6 {[%clk 0:01:23]} 19. Re3 {[%clk 0:02:06]}  Qd6 {[%clk 0:01:22]} 20. Qc1 {[%clk 0:02:02]}  Rfe8 {[%clk 0:01:13]} 21. h3 {[%clk 0:01:55]}  Bf5 {[%clk 0:01:07]} 22. Rc5 {[%clk 0:01:54]}  h6 {[%clk 0:01:02]} 23. Re5 {[%clk 0:01:48]}  Rxe5 {[%clk 0:00:48]} 24. dxe5 {[%clk 0:01:46]}  Qd7 {[%clk 0:00:48]} 25. Nd4 {[%clk 0:01:43]}  Rc8 {[%clk 0:00:37]} 26. Rxc8+ {[%clk 0:01:34]}  Qxc8 {[%clk 0:00:38]} 27. Qxc8+ {[%clk 0:01:33]}  Bxc8 {[%clk 0:00:39]} 28. f4 {[%clk 0:01:32]}  Kf8 {[%clk 0:00:36]} 29. Kf2 {[%clk 0:01:29]}  Ke8 {[%clk 0:00:36]} 30. Ke3 {[%clk 0:01:28]}  Kd7 {[%clk 0:00:36]} 31. Nf5 {[%clk 0:01:24]}  g6 {[%clk 0:00:29]} 32. Nd6 {[%clk 0:01:18]}  Ba6 {[%clk 0:00:23]} 33. Nxf7 {[%clk 0:01:16]} 1-0


[Site "https://www.chess.com"]

[Event "Titled Tuesday Blitz February 21 Late 2023"]
[White "Bon, Michael"]
[Black "Paravyan, David"]
[WhiteFideId "620696"]
[BlackFideId "4194985"]
[WhiteElo "2394"]
[BlackElo "2601"]
[Result "0-1"]
[Round "01"]
[TimeControl "180+2"]
[Date "2023.02.21"]
[WhiteClock "0:00:15"]
[BlackClock "0:00:17"]

1. e4 {[%clk 0:03:00]}  e5 {[%clk 0:02:58]} 2. Nf3 {[%clk 0:02:58]}  Nf6 {[%clk 0:02:58]} 3. Nc3 {[%clk 0:02:56]}  Nc6 {[%clk 0:02:57]} 4. Bb5 {[%clk 0:02:57]}  Nd4 {[%clk 0:02:56]} 5. Bc4 {[%clk 0:02:56]}  Bc5 {[%clk 0:02:56]} 6. Nxe5 {[%clk 0:02:56]}  Qe7 {[%clk 0:02:56]} 7. Nf3 {[%clk 0:02:56]}  d5 {[%clk 0:02:55]} 8. Nxd5 {[%clk 0:02:55]}  Qxe4+ {[%clk 0:02:52]} 9. Ne3 {[%clk 0:02:55]}  Bg4 {[%clk 0:02:50]} 10. Be2 {[%clk 0:02:55]}  Nxe2 {[%clk 0:02:48]} 11. Qxe2 {[%clk 0:02:55]}  O-O-O {[%clk 0:02:48]} 12. d3 {[%clk 0:02:56]}  Bxf3 {[%clk 0:02:27]} 13. Qxf3 {[%clk 0:02:44]}  Qxf3 {[%clk 0:02:27]} 14. gxf3 {[%clk 0:02:45]}  Rhe8 {[%clk 0:02:27]} 15. Kf1 {[%clk 0:02:07]}  Nd5 {[%clk 0:02:27]} 16. Nxd5 {[%clk 0:01:57]}  Rxd5 {[%clk 0:02:28]} 17. Bd2 {[%clk 0:01:56]}  Rf5 {[%clk 0:02:23]} 18. f4 {[%clk 0:01:44]}  Bd6 {[%clk 0:02:14]} 19. Rg1 {[%clk 0:01:33]}  g6 {[%clk 0:02:13]} 20. Rg5 {[%clk 0:01:18]}  Rf6 {[%clk 0:02:14]} 21. Re1 {[%clk 0:01:15]}  Rxe1+ {[%clk 0:02:11]} 22. Kxe1 {[%clk 0:01:16]}  Bxf4 {[%clk 0:02:10]} 23. Bxf4 {[%clk 0:01:15]}  Rxf4 {[%clk 0:02:11]} 24. Rg3 {[%clk 0:01:09]}  Rh4 {[%clk 0:02:10]} 25. h3 {[%clk 0:01:09]}  Kd7 {[%clk 0:02:08]} 26. Kf1 {[%clk 0:01:07]}  a5 {[%clk 0:02:03]} 27. Kg2 {[%clk 0:01:04]}  Rb4 {[%clk 0:01:57]} 28. b3 {[%clk 0:01:04]}  f5 {[%clk 0:01:25]} 29. Re3 {[%clk 0:01:00]}  a4 {[%clk 0:01:24]} 30. Re5 {[%clk 0:00:53]}  axb3 {[%clk 0:00:57]} 31. axb3 {[%clk 0:00:53]}  Rb6 {[%clk 0:00:51]} 32. Rc5 {[%clk 0:00:39]}  Rc6 {[%clk 0:00:28]} 33. Rxc6 {[%clk 0:00:37]}  Kxc6 {[%clk 0:00:29]} 34. Kf3 {[%clk 0:00:36]}  g5 {[%clk 0:00:26]} 35. Kg3 {[%clk 0:00:28]}  Kd5 {[%clk 0:00:24]} 36. f4 {[%clk 0:00:20]}  h6 {[%clk 0:00:24]} 37. c3 {[%clk 0:00:20]}  c5 {[%clk 0:00:21]} 38. fxg5 {[%clk 0:00:14]}  hxg5 {[%clk 0:00:22]} 39. h4 {[%clk 0:00:15]}  gxh4+ {[%clk 0:00:16]} 40. Kxh4 {[%clk 0:00:15]}  b5 {[%clk 0:00:17]} 0-1


[Site "https://www.chess.com"]

[Event "Titled Tuesday Blitz February 21 Late 2023"]
[White "Dubov, Daniil"]
[Black "The_Sherman_Variation"]
[WhiteFideId "24126055"]
[WhiteElo "2708"]
[BlackElo "2501"]
[Result "1/2-1/2"]
[Round "01"]
[TimeControl "180+2"]
[Date "2023.02.21"]
[WhiteClock "0:00:15"]
[BlackClock "0:00:13"]

1. e4 {[%clk 0:02:59]}  c5 {[%clk 0:02:57]} 2. Nf3 {[%clk 0:02:59]}  g6 {[%clk 0:02:57]} 3. c3 {[%clk 0:02:59]}  d5 {[%clk 0:02:57]} 4. exd5 {[%clk 0:02:59]}  Qxd5 {[%clk 0:02:58]} 5. Na3 {[%clk 0:02:58]}  Bg7 {[%clk 0:02:57]} 6. d4 {[%clk 0:02:57]}  cxd4 {[%clk 0:02:57]} 7. Bc4 {[%clk 0:02:57]}  Qd8 {[%clk 0:02:56]} 8. Qb3 {[%clk 0:02:48]}  e6 {[%clk 0:02:54]} 9. O-O {[%clk 0:02:46]}  Ne7 {[%clk 0:02:53]} 10. Nxd4 {[%clk 0:02:44]}  O-O {[%clk 0:02:51]} 11. Rd1 {[%clk 0:02:44]}  Qa5 {[%clk 0:02:46]} 12. Nab5 {[%clk 0:02:36]}  Nbc6 {[%clk 0:02:33]} 13. Nxc6 {[%clk 0:02:27]}  Nxc6 {[%clk 0:02:34]} 14. Bf4 {[%clk 0:02:26]}  Ne5 {[%clk 0:02:15]} 15. Be2 {[%clk 0:02:20]}  a6 {[%clk 0:01:52]} 16. Nd6 {[%clk 0:02:19]}  b5 {[%clk 0:01:51]} 17. a4 {[%clk 0:02:16]}  Qb6 {[%clk 0:01:33]} 18. axb5 {[%clk 0:02:14]}  Bd7 {[%clk 0:01:22]} 19. Nc4 {[%clk 0:01:23]}  Nxc4 {[%clk 0:01:09]} 20. Rxd7 {[%clk 0:01:23]}  axb5 {[%clk 0:01:04]} 21. Rxa8 {[%clk 0:01:21]}  Rxa8 {[%clk 0:01:05]} 22. g3 {[%clk 0:01:09]}  Ra1+ {[%clk 0:00:58]} 23. Rd1 {[%clk 0:01:08]}  Rxd1+ {[%clk 0:00:57]} 24. Bxd1 {[%clk 0:01:04]}  h5 {[%clk 0:00:57]} 25. Be2 {[%clk 0:01:00]}  Qc5 {[%clk 0:00:56]} 26. Qc2 {[%clk 0:00:58]}  Qd5 {[%clk 0:00:40]} 27. h4 {[%clk 0:00:54]}  Be5 {[%clk 0:00:35]} 28. Bg5 {[%clk 0:00:52]}  Kg7 {[%clk 0:00:32]} 29. b3 {[%clk 0:00:46]}  Nd6 {[%clk 0:00:30]} 30. c4 {[%clk 0:00:46]}  bxc4 {[%clk 0:00:29]} 31. bxc4 {[%clk 0:00:47]}  Qc6 {[%clk 0:00:28]} 32. c5 {[%clk 0:00:40]}  Nf5 {[%clk 0:00:28]} 33. Qc4 {[%clk 0:00:34]}  Bd4 {[%clk 0:00:24]} 34. Bd3 {[%clk 0:00:28]}  Qxc5 {[%clk 0:00:22]} 35. Qxc5 {[%clk 0:00:28]}  Bxc5 {[%clk 0:00:23]} 36. Kg2 {[%clk 0:00:28]}  Bd6 {[%clk 0:00:20]} 37. Bd2 {[%clk 0:00:28]}  Be5 {[%clk 0:00:20]} 38. Be1 {[%clk 0:00:28]}  Bf6 {[%clk 0:00:20]} 39. Bb4 {[%clk 0:00:27]}  Ne7 {[%clk 0:00:21]} 40. Be4 {[%clk 0:00:27]}  Nd5 {[%clk 0:00:21]} 41. Bd2 {[%clk 0:00:27]}  Nc3 {[%clk 0:00:21]} 42. Bd3 {[%clk 0:00:27]}  Nd5 {[%clk 0:00:22]} 43. Be1 {[%clk 0:00:27]}  Nc3 {[%clk 0:00:22]} 44. f3 {[%clk 0:00:27]}  Nd5 {[%clk 0:00:23]} 45. Bd2 {[%clk 0:00:27]}  Bd4 {[%clk 0:00:23]} 46. g4 {[%clk 0:00:22]}  hxg4 {[%clk 0:00:23]} 47. fxg4 {[%clk 0:00:22]}  f5 {[%clk 0:00:22]} 48. Kf3 {[%clk 0:00:21]}  Kf6 {[%clk 0:00:19]} 49. Bg5+ {[%clk 0:00:21]}  Kf7 {[%clk 0:00:19]} 50. Bc4 {[%clk 0:00:21]}  Nf6 {[%clk 0:00:18]} 51. gxf5 {[%clk 0:00:19]}  gxf5 {[%clk 0:00:19]} 52. Kf4 {[%clk 0:00:19]}  Nh5+ {[%clk 0:00:15]} 53. Kf3 {[%clk 0:00:19]}  Bf6 {[%clk 0:00:16]} 54. Ke3 {[%clk 0:00:15]}  Bxg5+ {[%clk 0:00:15]} 55. hxg5 {[%clk 0:00:16]}  Ng7 {[%clk 0:00:16]} 56. Kf4 {[%clk 0:00:16]}  Kg6 {[%clk 0:00:16]} 57. Bb3 {[%clk 0:00:15]}  Nh5+ {[%clk 0:00:14]} 58. Ke5 {[%clk 0:00:16]}  Kxg5 {[%clk 0:00:12]} 59. Bxe6 {[%clk 0:00:15]}  f4 {[%clk 0:00:12]} 60. Bd5 {[%clk 0:00:16]}  Kg4 {[%clk 0:00:11]} 61. Kd4 {[%clk 0:00:16]}  Kg3 {[%clk 0:00:11]} 62. Kd3 {[%clk 0:00:15]}  Nf6 {[%clk 0:00:12]} 63. Bc6 {[%clk 0:00:15]}  Ng4 {[%clk 0:00:12]} 64. Ke2 {[%clk 0:00:16]}  Ne5 {[%clk 0:00:12]} 65. Bd5 {[%clk 0:00:16]}  Ng6 {[%clk 0:00:11]} 66. Be4 {[%clk 0:00:16]}  Nh4 {[%clk 0:00:12]} 67. Bd5 {[%clk 0:00:16]}  Nf5 {[%clk 0:00:12]} 68. Be4 {[%clk 0:00:16]}  Nd4+ {[%clk 0:00:12]} 69. Kd3 {[%clk 0:00:16]}  Ne6 {[%clk 0:00:13]} 70. Ke2 {[%clk 0:00:16]}  Ng5 {[%clk 0:00:14]} 71. Bd5 {[%clk 0:00:16]}  Nh7 {[%clk 0:00:13]} 72. Be4 {[%clk 0:00:16]}  Nf6 {[%clk 0:00:14]} 73. Bc6 {[%clk 0:00:16]}  Ng4 {[%clk 0:00:14]} 74. Bb7 {[%clk 0:00:16]}  Ne5 {[%clk 0:00:15]} 75. Ba8 {[%clk 0:00:16]}  Nc4 {[%clk 0:00:14]} 76. Bb7 {[%clk 0:00:15]}  f3+ {[%clk 0:00:13]} 77. Bxf3 {[%clk 0:00:15]} 1/2-1/2


[Site "https://www.chess.com"]

[Event "Titled Tuesday Blitz February 21 Late 2023"]
[White "Mortazavi, Ali"]
[Black "Sarana, Alexey"]
[WhiteFideId "401323"]
[BlackFideId "24133795"]
[WhiteElo "2333"]
[BlackElo "2685"]
[Result "0-1"]
[Round "01"]
[TimeControl "180+2"]
[Date "2023.02.21"]
[WhiteClock "0:00:01"]
[BlackClock "0:00:03"]

1. e4 {[%clk 0:03:00]}  e5 {[%clk 0:02:46]} 2. Bc4 {[%clk 0:02:59]}  Nf6 {[%clk 0:02:45]} 3. d3 {[%clk 0:03:00]}  d5 {[%clk 0:02:43]} 4. exd5 {[%clk 0:02:59]}  Nxd5 {[%clk 0:02:44]} 5. Nf3 {[%clk 0:02:58]}  Nc6 {[%clk 0:02:44]} 6. O-O {[%clk 0:02:53]}  Bg4 {[%clk 0:02:44]} 7. Re1 {[%clk 0:02:45]}  Qd6 {[%clk 0:02:43]} 8. Nbd2 {[%clk 0:02:32]}  O-O-O {[%clk 0:02:42]} 9. h3 {[%clk 0:02:32]}  Bh5 {[%clk 0:02:41]} 10. Ne4 {[%clk 0:02:30]}  Qd7 {[%clk 0:02:39]} 11. Ng3 {[%clk 0:02:27]}  Bxf3 {[%clk 0:02:38]} 12. Qxf3 {[%clk 0:02:27]}  Nd4 {[%clk 0:02:38]} 13. Qd1 {[%clk 0:02:27]}  Nb6 {[%clk 0:02:38]} 14. Bb3 {[%clk 0:02:19]}  a5 {[%clk 0:02:03]} 15. c3 {[%clk 0:02:07]}  Nxb3 {[%clk 0:01:59]} 16. axb3 {[%clk 0:02:05]}  Qxd3 {[%clk 0:01:59]} 17. Qg4+ {[%clk 0:01:55]}  Qd7 {[%clk 0:01:59]} 18. Rxa5 {[%clk 0:01:41]}  Qxg4 {[%clk 0:01:57]} 19. hxg4 {[%clk 0:01:42]}  f6 {[%clk 0:01:56]} 20. Be3 {[%clk 0:01:39]}  h6 {[%clk 0:01:33]} 21. Rea1 {[%clk 0:01:34]}  c5 {[%clk 0:01:00]} 22. Ne4 {[%clk 0:01:13]}  Kc7 {[%clk 0:00:49]} 23. Bxc5 {[%clk 0:01:01]}  Bxc5 {[%clk 0:00:44]} 24. Rxc5+ {[%clk 0:00:52]}  Kb8 {[%clk 0:00:44]} 25. Rb5 {[%clk 0:00:52]}  Nc8 {[%clk 0:00:41]} 26. Nc5 {[%clk 0:00:48]}  b6 {[%clk 0:00:34]} 27. Na4 {[%clk 0:00:29]}  Kc7 {[%clk 0:00:33]} 28. c4 {[%clk 0:00:27]}  Kc6 {[%clk 0:00:29]} 29. Nc3 {[%clk 0:00:27]}  Nd6 {[%clk 0:00:22]} 30. Rb4 {[%clk 0:00:26]}  Ra8 {[%clk 0:00:23]} 31. Rd1 {[%clk 0:00:26]}  Rhe8 {[%clk 0:00:15]} 32. Nd5 {[%clk 0:00:26]}  Nc8 {[%clk 0:00:16]} 33. Nc3 {[%clk 0:00:20]}  Ra5 {[%clk 0:00:11]} 34. Rb5 {[%clk 0:00:21]}  Rxb5 {[%clk 0:00:11]} 35. Nxb5 {[%clk 0:00:21]}  Kc5 {[%clk 0:00:12]} 36. Rd7 {[%clk 0:00:20]}  Rg8 {[%clk 0:00:08]} 37. Nc7 {[%clk 0:00:15]}  Kb4 {[%clk 0:00:08]} 38. Ne6 {[%clk 0:00:13]}  Kxb3 {[%clk 0:00:08]} 39. Nxg7 {[%clk 0:00:13]}  Kxb2 {[%clk 0:00:08]} 40. Rc7 {[%clk 0:00:11]}  Nd6 {[%clk 0:00:07]} 41. f3 {[%clk 0:00:10]}  Kb3 {[%clk 0:00:06]} 42. Nf5 {[%clk 0:00:07]}  Nxc4 {[%clk 0:00:05]} 43. Nxh6 {[%clk 0:00:07]}  Rf8 {[%clk 0:00:05]} 44. Nf5 {[%clk 0:00:08]}  b5 {[%clk 0:00:05]} 45. Ne7 {[%clk 0:00:05]}  b4 {[%clk 0:00:05]} 46. Nd5 {[%clk 0:00:06]}  Rd8 {[%clk 0:00:05]} 47. Nxf6 {[%clk 0:00:05]}  Rd1+ {[%clk 0:00:04]} 48. Kh2 {[%clk 0:00:05]}  Ne3 {[%clk 0:00:04]} 49. g5 {[%clk 0:00:04]}  Rd2 {[%clk 0:00:04]} 50. Ng4 {[%clk 0:00:02]}  Nxg4+ {[%clk 0:00:02]} 51. fxg4 {[%clk 0:00:01]}  Rd6 {[%clk 0:00:03]} 0-1


[Site "https://www.chess.com"]

[Event "Titled Tuesday Blitz February 21 Late 2023"]
[White "Bortnyk, Olexandr"]
[Black "Zochowski, Kacper"]
[WhiteFideId "14120828"]
[BlackFideId "1125494"]
[WhiteElo "2605"]
[BlackElo "2262"]
[Result "1-0"]
[Round "01"]
[TimeControl "180+2"]
[Date "2023.02.21"]
[WhiteClock "0:02:06"]
[BlackClock "0:02:11"]

1. d4 {[%clk 0:03:00]}  d6 {[%clk 0:03:00]} 2. Nc3 {[%clk 0:03:00]}  Nf6 {[%clk 0:02:55]} 3. e4 {[%clk 0:03:00]}  e5 {[%clk 0:02:56]} 4. Nf3 {[%clk 0:03:00]}  Nbd7 {[%clk 0:02:56]} 5. Bc4 {[%clk 0:02:59]}  Be7 {[%clk 0:02:57]} 6. O-O {[%clk 0:02:59]}  O-O {[%clk 0:02:57]} 7. a4 {[%clk 0:02:59]}  c6 {[%clk 0:02:57]} 8. Re1 {[%clk 0:02:59]}  a5 {[%clk 0:02:52]} 9. h3 {[%clk 0:02:58]}  Qc7 {[%clk 0:02:52]} 10. Be3 {[%clk 0:02:56]}  h6 {[%clk 0:02:45]} 11. Nh4 {[%clk 0:02:44]}  exd4 {[%clk 0:02:40]} 12. Bxd4 {[%clk 0:02:43]}  Nc5 {[%clk 0:02:30]} 13. Ng6 {[%clk 0:02:41]}  Re8 {[%clk 0:02:27]} 14. e5 {[%clk 0:02:36]}  dxe5 {[%clk 0:02:22]} 15. Bxe5 {[%clk 0:02:35]}  Qd8 {[%clk 0:02:12]} 16. Qxd8 {[%clk 0:02:05]}  Bxd8 {[%clk 0:02:11]} 17. Bxf6 {[%clk 0:02:05]}  Rxe1+ {[%clk 0:02:10]} 18. Rxe1 {[%clk 0:02:06]}  Bxf6 {[%clk 0:02:10]} 19. Re8+ {[%clk 0:02:06]}  Kh7 {[%clk 0:02:10]} 20. Nf8+ {[%clk 0:02:05]}  Kg8 {[%clk 0:02:11]} 21. Nd7+ {[%clk 0:02:05]}  Kh7 {[%clk 0:02:11]} 22. Nxc5 {[%clk 0:02:06]} 1-0


[Site "https://www.chess.com"]

[Event "Titled Tuesday Blitz February 21 Late 2023"]
[White "Fedoseev, Vladimir"]
[Black "Le Goff, Ronan"]
[WhiteFideId "24130737"]
[BlackFideId "612073"]
[WhiteElo "2680"]
[BlackElo "2320"]
[Result "1-0"]
[Round "01"]
[TimeControl "180+2"]
[Date "2023.02.21"]
[WhiteClock "0:02:39"]
[BlackClock "0:01:45"]

1. e4 {[%clk 0:02:57]}  e5 {[%clk 0:02:57]} 2. Nf3 {[%clk 0:02:57]}  Nc6 {[%clk 0:02:56]} 3. Bb5 {[%clk 0:02:57]}  a6 {[%clk 0:02:47]} 4. Ba4 {[%clk 0:02:57]}  Nf6 {[%clk 0:02:48]} 5. O-O {[%clk 0:02:57]}  b5 {[%clk 0:02:40]} 6. Bb3 {[%clk 0:02:56]}  Be7 {[%clk 0:02:41]} 7. Re1 {[%clk 0:02:55]}  O-O {[%clk 0:02:38]} 8. a4 {[%clk 0:02:56]}  Bb7 {[%clk 0:02:27]} 9. d3 {[%clk 0:02:55]}  d6 {[%clk 0:02:14]} 10. Bd2 {[%clk 0:02:53]}  Re8 {[%clk 0:02:06]} 11. h3 {[%clk 0:02:50]}  Bf8 {[%clk 0:02:04]} 12. Nc3 {[%clk 0:02:50]}  b4 {[%clk 0:01:56]} 13. Nd5 {[%clk 0:02:49]}  Nxd5 {[%clk 0:01:54]} 14. Bxd5 {[%clk 0:02:48]}  a5 {[%clk 0:01:53]} 15. Ng5 {[%clk 0:02:48]}  Re7 {[%clk 0:01:50]} 16. Qh5 {[%clk 0:02:48]}  h6 {[%clk 0:01:45]} 17. Nxf7 {[%clk 0:02:39]} 1-0


[Site "https://www.chess.com"]

[Event "Titled Tuesday Blitz February 21 Late 2023"]
[White "Makarian, Rudik"]
[Black "Mikhalsky, Vladimir"]
[WhiteFideId "44105681"]
[BlackFideId "14144352"]
[WhiteElo "2545"]
[BlackElo "2219"]
[Result "1-0"]
[Round "01"]
[TimeControl "180+2"]
[Date "2023.02.21"]
[WhiteClock "0:02:05"]
[BlackClock "0:00:16"]

1. d4 {[%clk 0:03:00]}  Nf6 {[%clk 0:02:48]} 2. c4 {[%clk 0:03:00]}  g6 {[%clk 0:02:48]} 3. Nc3 {[%clk 0:03:00]}  Bg7 {[%clk 0:02:45]} 4. e4 {[%clk 0:03:01]}  d6 {[%clk 0:02:45]} 5. Be2 {[%clk 0:03:01]}  O-O {[%clk 0:02:44]} 6. Be3 {[%clk 0:03:02]}  e5 {[%clk 0:02:41]} 7. d5 {[%clk 0:03:02]}  a5 {[%clk 0:02:37]} 8. g4 {[%clk 0:03:03]}  Na6 {[%clk 0:02:36]} 9. g5 {[%clk 0:03:03]}  Nd7 {[%clk 0:02:27]} 10. h4 {[%clk 0:03:03]}  f5 {[%clk 0:02:25]} 11. gxf6 {[%clk 0:03:04]}  Bxf6 {[%clk 0:01:50]} 12. h5 {[%clk 0:03:04]}  Bg5 {[%clk 0:01:50]} 13. hxg6 {[%clk 0:02:56]}  Bxe3 {[%clk 0:01:38]} 14. fxe3 {[%clk 0:02:52]}  Qg5 {[%clk 0:01:31]} 15. Kd2 {[%clk 0:02:46]}  Nf6 {[%clk 0:00:57]} 16. Nf3 {[%clk 0:02:46]}  Qxg6 {[%clk 0:00:39]} 17. Rg1 {[%clk 0:02:45]}  Bg4 {[%clk 0:00:38]} 18. Nh2 {[%clk 0:02:21]}  h5 {[%clk 0:00:37]} 19. Bxg4 {[%clk 0:02:21]}  hxg4 {[%clk 0:00:35]} 20. Nxg4 {[%clk 0:02:22]}  Kh8 {[%clk 0:00:25]} 21. Nxf6 {[%clk 0:02:07]}  Qxf6 {[%clk 0:00:16]} 22. Qh5+ {[%clk 0:02:05]} 1-0


[Site "https://www.chess.com"]